fUST/lending_fUST_20240501
["ID","MTS","AMOUNT","RATE_DAILY","PERIOD"]
[325195188,1714572661986,-500.0,0.00055342,120]
[325195189,1714572661996,-500.0,0.00055342,120]
[325195190,1714572662006,-157.372824,0.00055342,120]
[325195191,1714572662015,-500.0,0.00055342,120]
[325195192,1714572662024,-3286.58,0.00055342,2]
[325195193,1714572662034,-500.0,0.00055342,120]
[325195194,1714572662043,-500.0,0.00055342,120]
[325195195,1714572662053,-500.0,0.00055342,120]
[325195196,1714572662062,-500.0,0.00055342,120]
[325195197,1714572662071,-500.0,0.00055342,120]
[325195198,1714572662080,-671.46,0.00055342,120]
[325195199,1714572662089,-500.0,0.00055342,120]
[325195200,1714572662099,-500.0,0.00055342,120]
[325195201,1714572662108,-500.0,0.00055342,120]
[325195202,1714572662117,-500.0,0.00055342,120]
[325195203,1714572662127,-2544.3,0.00055342,120]
[325195204,1714572662141,-1492.06,0.00055342,120]
[325195205,1714572662150,-500.0,0.00055342,120]
[325195206,1714572662160,-500.0,0.00055342,120]
[325195207,1714572662171,-500.0,0.00055342,120]
[325195208,1714572662182,-500.0,0.00055342,120]
[325195209,1714572662192,-11017.25,0.00055342,120]
[325195210,1714572662201,-500.0,0.00055342,120]
[325195211,1714572662211,-500.0,0.00055342,120]
[325195212,1714572662220,-500.0,0.00055342,120]
[325195213,1714572662229,-1610.35,0.00055342,120]
[325195214,1714572662239,-500.0,0.00055342,120]
[325195215,1714572662251,-500.0,0.00055342,120]
[325195216,1714572662262,-489.75932267,0.00055342,30]
[325195217,1714572662274,-1825.83,0.00055342,120]
[325195218,1714572662284,-500.0,0.00055342,120]
[325195219,1714572662294,-823.85,0.00055342,120]
[325195220,1714572662303,-414.68551336,0.00055342,120]
[325195221,1714572662312,-500.0,0.00055342,120]
[325195222,1714572662322,-513.24500026,0.00055342,120]
[325195223,1714572662332,-500.0,0.00055342,120]
[325195224,1714572662342,-500.0,0.00055342,120]
[325195225,1714572662351,-500.0,0.00055342,120]
[325195226,1714572662360,-1779.68,0.00055342,120]
[325195227,1714572662370,-500.0,0.00055342,120]
[325195228,1714572662381,-500.0,0.00055342,120]
[325195229,1714572662390,-500.0,0.00055342,120]
[325195230,1714572662400,-559.38,0.00055342,120]
[325195231,1714572662410,-500.0,0.00055342,120]
[325195232,1714572662420,-523.47522486,0.00055342,120]
[325195233,1714572662429,-500.0,0.00055342,120]
[325195234,1714572662438,-500.0,0.00055342,120]
[325195235,1714572662447,-500.0,0.00055342,120]
[325195236,1714572662457,-500.0,0.00055342,120]
[325195237,1714572662466,-692.14,0.00055342,120]
[325195238,1714572662475,-500.0,0.00055342,120]
[325195239,1714572662484,-500.0,0.00055342,120]
[325195240,1714572662493,-1846.2,0.00055342,120]
[325195241,1714572662502,-500.0,0.00055342,120]
[325195242,1714572662512,-1149.21,0.00055342,21]
[325195243,1714572662521,-500.0,0.00055342,120]
[325195244,1714572662530,-947.75857,0.00055342,120]
[325195245,1714572662539,-548.41,0.00055342,120]
[325195246,1714572662549,-947.75857,0.00055342,120]
[325195247,1714572662558,-947.75857,0.00055342,120]
[325195248,1714572662567,-947.758573,0.00055342,120]
[325195249,1714572662576,-500.0,0.00055342,120]
[325195250,1714572662586,-500.0,0.00055342,120]
[325195251,1714572662595,-586.6582426,0.00055342,120]
[325195252,1714572662604,-511.21,0.00055342,120]
[325195253,1714572662614,-500.0,0.00055342,120]
[325195254,1714572662623,-2131.16,0.00055342,120]
[325195255,1714572662634,-500.0,0.00055342,120]
[325195256,1714572662643,-1147.1,0.00055342,120]
[325195257,1714572662652,-516.72858567,0.00055342,120]
[325195258,1714572662662,-1609.49,0.00055342,120]
[325195259,1714572662671,-6055.3,0.00055342,120]
[325195260,1714572662680,-239.37878792,0.00055342,120]
[325195261,1714572662690,-500.0,0.00055342,120]
[325195262,1714572662700,-500.0,0.00055342,120]
[325195263,1714572662709,-500.0,0.00055342,120]
[325195264,1714572662719,-500.0,0.00055342,7]
[325195265,1714572662729,-500.0,0.00055342,120]
[325195266,1714572662738,-1668.77,0.00055342,120]
[325195267,1714572662748,-592.33,0.00055342,120]
[325195268,1714572662759,-500.0,0.00055342,120]
[325195269,1714572662768,-1156.16,0.00055342,120]
[325195270,1714572662778,-500.0,0.00055342,120]
[325195271,1714572662787,-2002.71,0.00055342,120]
[325195272,1714572662797,-500.0,0.00055342,120]
[325195273,1714572662811,-500.0,0.00055342,120]
[325195274,1714572662822,-777.36,0.00055342,120]
[325195275,1714572662838,-500.0,0.00055342,120]
[325195276,1714572662852,-1214.19,0.00055342,120]
[325195277,1714572662867,-500.0,0.00055342,120]
[325195278,1714572662878,-603.09,0.00055342,120]
[325195279,1714572662888,-500.0,0.00055342,120]
[325195280,1714572662897,-609.08,0.00055342,120]
[325195281,1714572662907,-500.0,0.00055342,120]
[325195282,1714572662916,-500.0,0.00055342,120]
[325195283,1714572662926,-562.29235177,0.00055342,120]
[325195284,1714572662935,-184.8153411,0.00055342,120]
[325195285,1714572663043,-500.0,0.00055342,120]
[325195286,1714572663054,-496.445566,0.00055342,60]
[325195287,1714572663063,-185.67983602,0.00055342,120]
[325195288,1714572663073,-496.445566,0.00055342,60]
[325195289,1714572663082,-500.0,0.00055342,120]
[325195290,1714572663091,-1476.3,0.00055342,120]
[325195291,1714572663101,-500.0,0.00055342,120]
[325195292,1714572663111,-500.0,0.00055342,120]
[325195293,1714572663120,-500.0,0.00055342,120]
[325195294,1714572663132,-802.35,0.00055342,120]
[325195295,1714572663142,-496.445566,0.00055342,60]
[325195296,1714572663152,-501.37907364,0.00055342,120]
[325195297,1714572663170,-496.445576,0.00055342,60]
[325195298,1714572663184,-265.381357,0.00055342,120]
[325195299,1714572663194,-5816.73,0.00055342,30]
[325195300,1714572663203,-500.0,0.00055342,120]
[325195301,1714572663214,-554.12,0.00055342,120]
[325195302,1714572663223,-265.381348,0.00055342,120]
[325195303,1714572663234,-500.0,0.00055342,120]
[325195304,1714572663244,-500.0,0.00055342,120]
[325195305,1714572663254,-500.0,0.00055342,120]
[325195306,1714572663265,-500.0,0.00055342,120]
[325195307,1714572663275,-500.0,0.00055342,120]
[325195308,1714572663284,-863.59,0.00055342,120]
[325195309,1714572663293,-791.02,0.00055342,120]
[325195310,1714572663303,-6727.11,0.00055342,120]
[325195311,1714572663312,-500.0,0.00055342,120]
[325195312,1714572663322,-500.0,0.00055342,120]
[325195313,1714572663332,-500.0,0.00055342,120]
[325195314,1714572663341,-563.76523579,0.00055342,120]
[325195315,1714572663350,-500.0,0.00055342,120]
[325195316,1714572663360,-748.69,0.00055342,120]
[325195317,1714572663369,-500.0,0.00055342,120]
[325195318,1714572663382,-500.0,0.00055342,120]
[325195319,1714572663391,-500.0,0.00055342,120]
[325195320,1714572663400,-500.0,0.00055342,120]
[325195321,1714572663409,-500.0,0.00055342,120]
[325195322,1714572663419,-557.95691212,0.00055342,120]
[325195323,1714572663428,-3192.87,0.00055342,120]
[325195324,1714572663437,-500.0,0.00055342,120]
[325195325,1714572663446,-1062.83,0.00055342,120]
[325195326,1714572663455,-158.27499171,0.00055342,120]
[325195327,1714572663465,-23207.15,0.00055342,120]
[325195328,1714572663474,-772.53,0.00055342,120]
[325195329,1714572663484,-500.0,0.00055342,120]
[325195330,1714572663493,-500.0,0.00055342,120]
[325195331,1714572663503,-500.0,0.00055342,120]
[325195332,1714572663512,-500.0,0.00055342,120]
[325195333,1714572663521,-8045.56,0.00055342,120]
[325195334,1714572663531,-222.05634145,0.00055342,120]
[325195335,1714572663540,-500.0,0.00055342,120]
[325195336,1714572663550,-1945.48,0.00055342,120]
[325195337,1714572663559,-500.0,0.00055342,120]
[325195338,1714572663568,-500.0,0.00055342,120]
[325195339,1714572663577,-193.688564,0.00055342,120]
[325195340,1714572663586,-500.0,0.00055342,120]
[325195341,1714572663596,-1954.15,0.00055342,120]
[325195342,1714572663605,-500.0,0.00055342,120]
[325195343,1714572663615,-1471.13,0.00055342,120]
[325195344,1714572663624,-193.688562,0.00055342,120]
[325195345,1714572663636,-500.0,0.00055342,120]
[325195346,1714572663646,-881.83,0.00055342,120]
[325195347,1714572663655,-500.0,0.00055342,120]
[325195348,1714572663664,-775.47,0.00055342,120]
[325195349,1714572663673,-365.042218,0.00055342,120]
[325195350,1714572663683,-1101.12,0.00055342,120]
[325195351,1714572663693,-2965.72,0.00055342,120]
[325195352,1714572663702,-719.83,0.00055342,120]
[325195353,1714572663712,-1429.92,0.00055342,120]
[325195354,1714572663721,-500.0,0.00055342,120]
[325195355,1714572663731,-365.042223,0.00055342,120]
[325195356,1714572663741,-500.0,0.00055342,120]
[325195357,1714572663750,-601.05,0.00055342,120]
[325195358,1714572663760,-760.17,0.00055342,120]
[325195359,1714572663769,-500.0,0.00055342,120]
[325195360,1714572663779,-500.0,0.00055342,120]
[325195361,1714572663788,-665.158902,0.00055342,120]
[325195362,1714572663798,-665.158902,0.00055342,120]
[325195363,1714572663807,-500.0,0.00055342,120]
[325195364,1714572663816,-500.0,0.00055342,120]
[325195365,1714572663825,-190.99130353,0.00055342,20]
[325195366,1714572663835,-928.81,0.00055342,120]
[325195367,1714572663844,-500.0,0.00055342,120]
[325195368,1714572663854,-911.4,0.00055342,120]
[325195369,1714572663863,-665.158902,0.00055342,120]
[325195370,1714572663873,-665.158897,0.00055342,120]
[325195371,1714572663892,-500.0,0.00055342,120]
[325195372,1714572663902,-514.42,0.00055342,120]
[325195373,1714572663911,-500.0,0.00055342,120]
[325195374,1714572663920,-504.60657867,0.00055342,120]
[325195375,1714572663930,-500.0,0.00055342,120]
[325195376,1714572663939,-500.0,0.00055342,120]
[325195377,1714572663950,-500.30006974,0.00055342,120]
[325195378,1714572663959,-595.81,0.00055342,120]
[325195379,1714572663969,-500.0,0.00055342,120]
[325195380,1714572663979,-546.33,0.00055342,120]
[325195381,1714572663988,-1330.07,0.00055342,120]
[325195382,1714572663998,-605.39357917,0.00055342,120]
[325195383,1714572664007,-500.0,0.00055342,120]
[325195384,1714572664018,-500.0,0.00055342,120]
[325195385,1714572664028,-500.0,0.00055342,120]
[325195386,1714572664038,-500.0,0.00055342,120]
[325195387,1714572664048,-734.7,0.00055342,120]
[325195388,1714572664058,-500.0,0.00055342,120]
[325195389,1714572664067,-517.3,0.00055342,120]
[325195390,1714572664077,-500.0,0.00055342,120]
[325195391,1714572664086,-500.0,0.00055342,120]
[325195392,1714572664096,-626.18,0.00055342,120]
[325195393,1714572664106,-894.54,0.00055342,120]
[325195394,1714572664116,-500.0,0.00055342,120]
[325195395,1714572664126,-4028.05,0.00055342,120]
[325195396,1714572664142,-500.0,0.00055342,120]
[325195397,1714572664151,-500.0,0.00055342,120]
[325195398,1714572664162,-2976.84,0.00055342,120]
[325195399,1714572664172,-500.0,0.00055342,120]
[325195400,1714572664182,-500.0,0.00055342,120]
[325195401,1714572664191,-500.0,0.00055342,120]
[325195402,1714572664201,-500.0,0.00055342,120]
[325195403,1714572664211,-1523.39,0.00055342,120]
[325195404,1714572664221,-500.0,0.00055342,120]
[325195405,1714572664231,-500.0,0.00055342,120]
[325195406,1714572664240,-417.0,0.00055493,120]
[325195407,1714572664249,-150.0,0.00055493,120]
[325195408,1714572664259,-37700.0,0.000555,120]
[325195409,1714572664269,-604.07512,0.00055576,2]
[325195410,1714572664278,-536.0,0.0005587,35]
[325195411,1714572664287,-5000.0,0.0005587,60]
[325195412,1714572664297,-536.0,0.0005588,35]
[325195413,1714572664306,-211.09,0.0005589,35]
[325195414,1714572664315,-500.0,0.0005589,120]
[325195415,1714572664324,-500.0,0.0005589,120]
[325195416,1714572664334,-536.0,0.0005589,35]
[325195417,1714572664344,-151.0,0.0005589,120]
[325195418,1714572664354,-500.0,0.0005589,120]
[325195419,1714572664363,-500.0,0.0005589,120]
[325195420,1714572664372,-180.67046333,0.0005589,120]
[325195421,1714572664385,-500.0,0.0005589,120]
[325195422,1714572664394,-500.0,0.0005589,120]
[325195423,1714572664404,-479.85014797,0.0005589,120]
[325195424,1714572664413,-308.54558396,0.0005589,120]
[325195425,1714572664423,-675.55,0.0005589,120]
[325195426,1714572664432,-500.0,0.0005589,120]
[325195427,1714572664442,-500.0,0.0005589,120]
[325195428,1714572664451,-500.0,0.0005589,120]
[325195429,1714572664461,-500.0,0.0005589,120]
[325195430,1714572664470,-500.0,0.0005589,120]
[325195431,1714572664479,-500.0,0.0005589,120]
[325195432,1714572664488,-500.0,0.0005589,120]
[325195433,1714572664497,-500.0,0.0005589,120]
[325195434,1714572664506,-627.3,0.0005589,120]
[325195435,1714572664515,-500.0,0.0005589,120]
[325195436,1714572664525,-500.0,0.0005589,120]
[325195437,1714572664533,-500.0,0.0005589,120]
[325195438,1714572664542,-500.0,0.0005589,120]
[325195439,1714572664551,-500.0,0.0005589,60]
[325195440,1714572664560,-500.0,0.0005589,120]
[325195441,1714572664570,-500.0,0.0005589,120]
[325195442,1714572664579,-500.0,0.0005589,120]
[325195443,1714572664588,-981.62,0.0005589,120]
[325195444,1714572664598,-500.0,0.0005589,120]
[325195445,1714572664607,-500.0,0.0005589,120]
[325195446,1714572664616,-1156.78,0.0005589,120]
[325195447,1714572664626,-615.44,0.0005589,120]
[325195448,1714572664639,-605.91,0.0005589,120]
[325195449,1714572664648,-431.26278848,0.0005589,120]
[325195450,1714572664657,-500.0,0.0005589,120]
[325195451,1714572664666,-500.0,0.0005589,120]
[325195452,1714572664675,-500.0,0.0005589,120]
[325195453,1714572664684,-500.0,0.0005589,120]
[325195454,1714572664784,-500.0,0.0005589,120]
[325195455,1714572664794,-500.0,0.0005589,120]
[325195456,1714572664804,-1193.27,0.0005589,120]
[325195457,1714572664814,-500.0,0.0005589,120]
[325195458,1714572664824,-500.0,0.0005589,120]
[325195459,1714572664834,-500.0,0.0005589,120]
[325195460,1714572664844,-500.0,0.0005589,120]
[325195461,1714572664853,-523.75120667,0.0005589,120]
[325195462,1714572664864,-500.0,0.0005589,120]
[325195463,1714572664874,-500.0,0.0005589,120]
[325195464,1714572664886,-500.0,0.0005589,120]
[325195465,1714572664896,-507.42172885,0.0005589,120]
[325195466,1714572664906,-500.0,0.0005589,120]
[325195467,1714572664916,-500.0,0.0005589,120]
[325195468,1714572664926,-500.0,0.0005589,120]
[325195469,1714572664936,-500.0,0.0005589,120]
[325195470,1714572664946,-500.0,0.0005589,120]
[325195471,1714572664956,-500.0,0.0005589,120]
[325195472,1714572664967,-500.0,0.0005589,120]
[325195473,1714572664977,-535.92,0.0005589,120]
[325195474,1714572664987,-500.0,0.0005589,120]
[325195475,1714572664996,-644.62257287,0.0005589,120]
[325195476,1714572665005,-500.0,0.0005589,120]
[325195477,1714572665015,-500.0,0.0005589,120]
[325195478,1714572665024,-575.5951722,0.0005589,120]
[325195479,1714572665034,-623.71,0.0005589,120]
[325195480,1714572665044,-500.0,0.0005589,120]
[325195481,1714572665054,-500.0,0.0005589,120]
[325195482,1714572665064,-500.0,0.0005589,120]
[325195483,1714572665074,-500.0,0.0005589,120]
[325195484,1714572665084,-352.19897217,0.0005589,120]
[325195485,1714572665094,-196.46473343,0.0005589,120]
[325195486,1714572665104,-500.0,0.0005589,120]
[325195487,1714572665113,-500.0,0.0005589,120]
[325195488,1714572665123,-578.94459361,0.0005589,120]
[325195489,1714572665135,-501.33149807,0.0005589,120]
[325195490,1714572665144,-500.0,0.0005589,120]
[325195491,1714572665154,-500.0,0.0005589,120]
[325195492,1714572665170,-532.26301007,0.0005589,120]
[325195493,1714572665180,-815.15,0.0005589,120]
[325195494,1714572665190,-500.0,0.0005589,120]
[325195495,1714572665200,-500.0,0.0005589,30]
[325195496,1714572665211,-587.94,0.0005589,120]
[325195497,1714572665220,-154.95425391,0.0005589,120]
[325195498,1714572665230,-500.0,0.0005589,2]
[325195499,1714572665240,-505.24966941,0.0005589,120]
[325195500,1714572665250,-500.0,0.0005589,120]
[325195501,1714572665260,-500.0,0.0005589,120]
[325195502,1714572665270,-500.0,0.0005589,120]
[325195503,1714572665279,-1302.55,0.0005589,120]
[325195504,1714572665288,-500.0,0.0005589,120]
[325195505,1714572665298,-500.0,0.0005589,120]
[325195506,1714572665308,-500.0,0.0005589,120]
[325195507,1714572665317,-524.03,0.0005589,120]
[325195508,1714572665327,-500.0,0.0005589,120]
[325195509,1714572665337,-500.0,0.0005589,120]
[325195510,1714572665346,-500.0,0.0005589,120]
[325195511,1714572665356,-500.0,0.0005589,120]
[325195512,1714572665365,-1645.04,0.0005589,120]
[325195513,1714572665375,-549.97,0.0005589,120]
[325195514,1714572665387,-500.0,0.0005589,120]
[325195515,1714572665396,-500.0,0.0005589,120]
[325195516,1714572665406,-500.0,0.0005589,120]
[325195517,1714572665415,-500.0,0.0005589,120]
[325195518,1714572665425,-500.0,0.0005589,120]
[325195519,1714572665435,-965.17,0.0005589,120]
[325195520,1714572665445,-1276.34,0.0005589,120]
[325195521,1714572665455,-500.0,0.0005589,120]
[325195522,1714572665465,-500.0,0.0005589,120]
[325195523,1714572665475,-548.5,0.0005589,120]
[325195524,1714572665484,-500.0,0.0005589,120]
[325195525,1714572665494,-2762.03,0.0005589,120]
[325195526,1714572665504,-500.0,0.0005589,120]
[325195527,1714572665514,-700.99,0.0005589,120]
[325195528,1714572665524,-500.0,0.0005589,120]
[325195529,1714572665534,-1059.71,0.0005589,120]
[325195530,1714572665544,-911.27,0.0005589,120]
[325195531,1714572665555,-500.0,0.0005589,120]
[325195532,1714572665564,-1000.0,0.0005589,120]
[325195533,1714572665574,-500.0,0.0005589,120]
[325195534,1714572665583,-500.0,0.0005589,120]
[325195535,1714572665592,-500.0,0.0005589,120]
[325195536,1714572665602,-500.0,0.0005589,120]
[325195537,1714572665611,-500.0,0.0005589,120]
[325195538,1714572665621,-546.14683041,0.0005589,120]
[325195539,1714572665632,-500.0,0.0005589,120]
[325195540,1714572665642,-500.0,0.0005589,120]
[325195541,1714572665651,-500.0,0.0005589,120]
[325195542,1714572665661,-500.0,0.0005589,120]
[325195543,1714572665671,-500.0,0.0005589,120]
[325195544,1714572665681,-500.0,0.0005589,120]
[325195545,1714572665691,-500.0,0.0005589,120]
[325195546,1714572665700,-500.0,0.0005589,120]
[325195547,1714572665710,-874.24,0.0005589,120]
[325195548,1714572665720,-500.0,0.0005589,120]
[325195549,1714572665730,-500.0,0.0005589,2]
[325195550,1714572665740,-500.0,0.0005589,120]
[325195551,1714572665750,-500.0,0.0005589,120]
[325195552,1714572665759,-500.0,0.0005589,120]
[325195553,1714572665769,-500.0,0.0005589,120]
[325195554,1714572665779,-4565.84,0.0005589,120]
[325195555,1714572665788,-500.0,0.0005589,120]
[325195556,1714572665798,-500.0,0.0005589,120]
[325195557,1714572665807,-500.0,0.0005589,120]
[325195558,1714572665817,-500.0,0.0005589,120]
[325195559,1714572665826,-5396.39,0.0005589,120]
[325195560,1714572665835,-500.0,0.0005589,120]
[325195561,1714572665844,-500.0,0.0005589,120]
[325195562,1714572665854,-500.0,0.0005589,120]
[325195563,1714572665862,-523.06,0.0005589,120]
[325195564,1714572665872,-500.0,0.0005589,120]
[325195565,1714572665884,-500.0,0.0005589,120]
[325195566,1714572665894,-519.47,0.0005589,120]
[325195567,1714572665903,-619.66593288,0.0005589,120]
[325195568,1714572665912,-300.0,0.0005589,2]
[325195569,1714572665921,-500.0,0.0005589,120]
[325195570,1714572665931,-500.0,0.0005589,120]
[325195571,1714572665941,-781.51,0.0005589,120]
[325195572,1714572665950,-500.0,0.0005589,120]
[325195573,1714572665960,-500.0,0.0005589,120]
[325195574,1714572665969,-500.0,0.0005589,120]
[325195575,1714572665979,-670.21,0.0005589,120]
[325195576,1714572665989,-500.0,0.0005589,120]
[325195577,1714572665997,-500.0,0.0005589,120]
[325195578,1714572666007,-500.0,0.0005589,120]
[325195579,1714572666016,-500.0,0.0005589,120]
[325195580,1714572666025,-699.57,0.0005589,120]
[325195581,1714572666035,-500.0,0.0005589,120]
[325195582,1714572666045,-500.0,0.0005589,120]
[325195583,1714572666055,-553.84,0.0005589,120]
[325195584,1714572666064,-500.0,0.0005589,120]
[325195585,1714572666074,-227.64454898,0.0005589,120]
[325195586,1714572666083,-501.02780802,0.0005589,120]
[325195587,1714572666093,-500.0,0.0005589,120]
[325195588,1714572666102,-500.0,0.0005589,120]
[325195589,1714572666112,-500.0,0.0005589,120]
[325195590,1714572666121,-241.92146026,0.0005589,120]
[325195591,1714572666134,-500.0,0.0005589,120]
[325195592,1714572666144,-500.0,0.0005589,120]
[325195593,1714572666153,-500.0,0.0005589,120]
[325195594,1714572666164,-500.0,0.0005589,120]
[325195595,1714572666177,-500.0,0.0005589,120]
[325195596,1714572666186,-500.0,0.0005589,120]
[325195597,1714572666196,-670.01,0.0005589,120]
[325195598,1714572666206,-500.0,0.0005589,120]
[325195599,1714572666216,-951.34,0.0005589,2]
[325195600,1714572666226,-735.78,0.0005589,120]
[325195601,1714572666236,-500.0,0.0005589,120]
[325195602,1714572666246,-300.0,0.0005589,7]
[325195603,1714572666258,-500.0,0.0005589,120]
[325195604,1714572666268,-500.0,0.0005589,120]
[325195605,1714572666278,-500.0,0.0005589,120]
[325195606,1714572666288,-500.0,0.0005589,120]
[325195607,1714572666298,-500.0,0.0005589,120]
[325195608,1714572666307,-151.88954364,0.0005589,120]
[325195609,1714572666414,-500.0,0.0005589,120]
[325195610,1714572666425,-848.19,0.0005589,120]
[325195611,1714572666434,-500.0,0.0005589,120]
[325195612,1714572666443,-479.17875976,0.0005589,120]
[325195613,1714572666453,-500.0,0.0005589,120]
[325195614,1714572666463,-500.0,0.0005589,120]
[325195615,1714572666472,-500.0,0.0005589,120]
[325195616,1714572666482,-500.0,0.0005589,120]
[325195617,1714572666492,-500.0,0.0005589,120]
[325195618,1714572666502,-500.0,0.0005589,120]
[325195619,1714572666511,-500.0,0.0005589,120]
[325195620,1714572666521,-500.0,0.0005589,120]
[325195621,1714572666530,-500.0,0.0005589,120]
[325195622,1714572666540,-500.0,0.0005589,120]
[325195623,1714572666550,-500.0,0.0005589,120]
[325195624,1714572666559,-500.0,0.0005589,120]
[325195625,1714572666568,-1182.29,0.0005589,120]
[325195626,1714572666578,-500.0,0.0005589,120]
[325195627,1714572666587,-502.0960308,0.0005589,120]
[325195628,1714572666597,-1042.65,0.0005589,120]
[325195629,1714572666606,-500.0,0.0005589,120]
[325195630,1714572666616,-500.0,0.0005589,120]
[325195631,1714572666625,-500.0,0.0005589,120]
[325195632,1714572666637,-592.11,0.0005589,120]
[325195633,1714572666647,-500.0,0.0005589,120]
[325195634,1714572666657,-500.0,0.0005589,120]
[325195635,1714572666666,-500.0,0.0005589,120]
[325195636,1714572666676,-500.0,0.0005589,120]
[325195637,1714572666685,-1000.0,0.0005589,120]
[325195638,1714572666695,-500.0,0.0005589,120]
[325195639,1714572666705,-437.71081319,0.0005589,120]
[325195640,1714572666718,-500.0,0.0005589,120]
[325195641,1714572666728,-527.76576287,0.0005589,120]
[325195642,1714572666738,-1839.53,0.0005589,120]
[325195643,1714572666747,-501.18357816,0.0005589,120]
[325195644,1714572666756,-500.0,0.0005589,120]
[325195645,1714572666766,-500.0,0.0005589,120]
[325195646,1714572666776,-500.0,0.0005589,120]
[325195647,1714572666786,-733.5,0.0005589,120]
[325195648,1714572666795,-500.0,0.0005589,120]
[325195649,1714572666804,-500.0,0.0005589,120]
[325195650,1714572666814,-500.0,0.0005589,120]
[325195651,1714572666824,-500.0,0.0005589,120]
[325195652,1714572666834,-500.0,0.0005589,120]
[325195653,1714572666842,-500.0,0.0005589,120]
[325195654,1714572666851,-500.0,0.0005589,120]
[325195655,1714572666860,-500.0,0.0005589,120]
[325195656,1714572666867,-500.0,0.0005589,120]
[325195657,1714572666875,-500.0,0.0005589,120]
[325195658,1714572666888,-1073.97,0.0005589,120]
[325195659,1714572666898,-1287.33,0.0005589,120]
[325195660,1714572666908,-500.0,0.0005589,120]
[325195661,1714572666917,-500.0,0.0005589,120]
[325195662,1714572666926,-563.35,0.0005589,120]
[325195663,1714572666934,-500.0,0.0005589,120]
[325195664,1714572666942,-500.0,0.0005589,120]
[325195665,1714572666949,-500.0,0.0005589,120]
[325195666,1714572666957,-500.0,0.0005589,120]
[325195667,1714572666965,-912.09,0.0005589,120]
[325195668,1714572666973,-500.0,0.0005589,120]
[325195669,1714572666980,-500.0,0.0005589,120]
[325195670,1714572666988,-500.0,0.0005589,3]
[325195671,1714572666997,-500.0,0.0005589,120]
[325195672,1714572667005,-500.0,0.0005589,120]
[325195673,1714572667015,-500.0,0.0005589,120]
[325195674,1714572667025,-561.35397468,0.0005589,120]
[325195675,1714572667034,-500.0,0.0005589,120]
[325195676,1714572667044,-500.0,0.0005589,120]
[325195677,1714572667053,-500.0,0.0005589,120]
[325195678,1714572667063,-500.0,0.0005589,120]
[325195679,1714572667072,-500.0,0.0005589,120]
[325195680,1714572667082,-792.53,0.0005589,120]
[325195681,1714572667091,-511.91,0.0005589,120]
[325195682,1714572667100,-527.23596349,0.0005589,120]
[325195683,1714572667109,-500.0,0.0005589,120]
[325195684,1714572667119,-1488.99,0.0005589,120]
[325195685,1714572667128,-775.37,0.0005589,120]
[325195686,1714572667141,-814.32,0.0005589,7]
[325195687,1714572667150,-1779.15,0.0005589,120]